Cogmind - Beta 12 @@@ ROGUE MODE // 2023.04.07 @ 22:46:53 Player: Shadow Pussy wanter Result: Destroyed self with Improved Grenade Launcher Performance ------------- Evolutions (0) 0 Regions Visited (4) 800 Robots Destroyed (24) 120 Value Destroyed (633) 633 Prototype IDs (2) 40 Alien Tech Used (0) 0 Bonus (300) 300 TOTAL SCORE: 1893 Bonus ------- Aligned with FarCom 300 Cogmind --------- Core Integrity 0/250 Matter 189/300 Energy 100/100 System Corruption 0% Temperature Cool (0) Movement Core (900) Ox17 Location -9/Mines Parts ------- > --- POWER (1) -------- (None) > --- PROPULSION (2) --- (None) > --- UTILITY (2) ------ Disposable Heat Sink High-capacity Storage Unit > --- WEAPON (2) ------- Flak Cannon Improved Grenade Launcher > --- INVENTORY (20) --- Aluminum Leg High-capacity Battery (250) Medium Matter Pod (70) Improved Terrain Scanner Hardened Light Armor Plating Hardened Light Armor Plating Assault Rifle High-powered Shotgun Grenade Launcher Field Lobotomy Kit (5) Peak State ------------ > --- POWER ------------ Light Ion Engine > --- PROPULSION ------- Aluminum Leg Aluminum Leg > --- UTILITY ---------- Disposable Heat Sink Small Storage Unit > --- WEAPON ----------- Latent Energy Streamer Flak Cannon > --- INVENTORY -------- Aluminum Leg Sensor Array Improved Terrain Scanner Hardened Light Armor Plating Hardened Light Armor Plating Assault Rifle High-powered Shotgun Improved Grenade Launcher [Rating: 20] Favorites ----------- Power Light Ion Engine Engine Light Ion Engine Power Core Light Nuclear Core Propulsion Aluminum Leg Treads Light Treads Leg Aluminum Leg Utility Disposable Heat Sink Device Disposable Heat Sink Storage Small Storage Unit Hackware Hacking Suite Weapon Small Laser Energy Gun Small Laser Energy Cannon Latent Energy Streamer Ballistic Gun Assault Rifle Ballistic Cannon Flak Cannon Launcher Grenade Launcher Special Weapon Field Lobotomy Kit Build | -11 -10 -10 -10 -9 ------- Run | Jun Mat Min Exi Min Slots Evolved . | . . . . . Power . | . . . . . Propulsion . | . . . . . Utility . | . . . . . Weapon . | . . . . . Parts Attached 22 | 5 11 2 3 1 Power 3 | 1 2 . . . Engine 2 | 1 1 . . . Core 1 | . 1 . . . Reactor . | . . . . . Propulsion 4 | 2 2 . . . Treads 2 | 2 . . . . Leg 2 | . 2 . . . Wheel . | . . . . . Hover . | . . . . . Flight . | . . . . . Utility 6 | 1 4 . 1 . Device 3 | . 3 . . . Storage 2 | 1 . . 1 . Processor . | . . . . . Hackware 1 | . 1 . . . Protection . | . . . . . Artifact . | . . . . . Weapon 9 | 1 3 2 2 1 Energy Gun 3 | . 3 . . . Energy Cannon 1 | . . . 1 . Ballistic Gun 1 | 1 . . . . Ballistic Cannon 1 | . . 1 . . Launcher 2 | . . 1 . 1 Special Weapon 1 | . . . 1 . Impact Weapon . | . . . . . Slashing Weapon . | . . . . . Piercing Weapon . | . . . . . Special Melee Weapon . | . . . . . Unidentified Prototypes 2 | . . . 2 . Parts Lost 5 | . 2 . . 3 Power 1 | . . . . 1 Propulsion 3 | . 1 . . 2 Utility . | . . . . . Weapon 1 | . 1 . . . Highest Loss Streak 3 | . 2 . . 3 To Critical Strikes . | . . . . . Average Slot Usage (%) 98 | . 96 100 100 71 Engine 10 | . 3 14 14 . Core 2 | . 10 . . . Treads 5 | . 20 . . . Leg 22 | . 7 28 28 14 Device 12 | . 9 14 14 14 Storage 14 | . 14 14 14 14 Energy Gun 9 | . 24 7 . . Ballistic Cannon 8 | . . 6 14 14 Launcher 4 | . . 13 1 14 Special Weapon 5 | . . . 11 . Naked Turns . | . . . . . Heaviest Build 58 | 12 14 18 58 . Greatest Support 40 | 40 40 20 20 . Greatest Overweight (x) 3 | 3 . . 2 . Average Overweight (x) . | 1 . . 1 . Largest Inventory Capacity 20 | 8 8 8 20 20 Average Capacity 9 | 7 8 8 12 20 Most Carried 10 | 7 8 8 10 10 Average Carried 7 | 4 7 7 8 10 Final Capacity 20 | 8 8 8 20 20 Final Carried 10 | 7 8 8 10 10 Class Distribution -------------------- 93% | Mutant 6% | Scavenger-Mutant Dominant Class ---------------- Mutant | -10/Materials Mutant | -10/Mines Mutant | -10/Exiles Mutant | -9/Mines Resources | -11 -10 -10 -10 -9 ----------- Run | Jun Mat Min Exi Min Matter Collected 489 | 167 232 60 30 . Remotely . | . . . . . Salvage Created 723 | . 552 97 . 74 Parts 52 | . 34 13 . 5 Haulers Intercepted . | . . . . . Recyclers Shooed . | . . . . . Parts Field Recycled . | . . . . . Retrieved Matter . | . . . . . Parts Self-Destructed . | . . . . . Prevented . | . . . . . Kills | -11 -10 -10 -10 -9 ------- Run | Jun Mat Min Exi Min Combat Hostiles Destroyed 25 | . 12 3 . 10 Guns 12 | . 12 . . . AOE 13 | . . 3 . 10 Classes Destroyed 9 | . 3 4 . 2 Worker 2 | . . 2 . . Builder 1 | . . 1 . . Recycler 1 | . . 1 . . Operator 1 | . 1 . . . Watcher 1 | . 1 . . . Swarmer 3 | . . 3 . . Grunt 14 | . 12 . . 2 Brawler 1 | . . . . 1 Assembled 7 | . . . . 7 Best Kill Streak 10 | . 6 7 . 10 Combat Bots Only 10 | . 6 3 . 10 Max Kills in Single Turn 4 | . 2 4 . 3 Gunslinging 1 | . 1 . . . Exploded 3 | . . 3 . 3 Melee . | . . . . . Uniques/NPCs Destroyed . | . . . . . Combat | -11 -10 -10 -10 -9 -------- Run | Jun Mat Min Exi Min Damage Taken 1239 | . 712 89 . 438 Core 255 | . 159 . . 96 Absorbed by Shields . | . . . . . Core Remaining (%) 100 | 100 . . . . Volleys Fired 62 | . 50 4 . 8 Largest 2 | . 2 1 . 2 Hottest 80 | . 80 40 . 80 Shots Fired 109 | . 95 4 . 10 Gun 96 | . 95 1 . . Cannon 2 | . . . . 2 Launcher 11 | . . 3 . 8 Special . | . . . . . Kinetic 20 | . 18 . . 2 Thermal 78 | . 77 1 . . Explosive 11 | . . 3 . 8 Electromagnetic . | . . . . . Robot Hit Streak 12 | . 12 3 . 4 Robot Miss Streak 3 | . 3 1 . 1 Penetration Max . | . . . . . Secondary Targets 3 | . 3 . . . Max Gunslinging Chain 1 | . 1 . . . Shots Hit Robots 82 | . 70 3 . 9 Core Hits 59 | . 31 9 . 19 Critical Kills . | . . . . . Critical Parts Destroyed . | . . . . . Critical Strikes . | . . . . . Melee Attacks . | . . . . . Impact . | . . . . . Slashing . | . . . . . Piercing . | . . . . . Sneak Attacks . | . . . . . Combat Hostiles . | . . . . . Follow-up Attacks . | . . . . . Damage Inflicted 2120 | . 819 409 . 892 Guns 828 | . 817 11 . . Cannons 54 | . . . . 54 Explosions 1225 | . . 387 . 838 Melee . | . . . . . Ramming 13 | . 2 11 . . Kinetic 262 | . 208 . . 54 Thermal 620 | . 609 11 . . Explosive 1225 | . . 387 . 838 Electromagnetic . | . . . . . Impact . | . . . . . Slashing . | . . . . . Piercing . | . . . . . Highest Corruption . | . . . . . Average Corruption . | . . . . . Corruption Purged . | . . . . . Corruption Blocked . | . . . . . Overload Shots . | . . . . . Overflow Damage 35 | . . 12 . 23 Projectiles . | . . . . . Explosions 35 | . . 12 . 23 Melee . | . . . . . Knockbacks 1 | . . . . 1 Impact . | . . . . . Kinetic 1 | . . . . 1 Secondary . | . . . . . Self-Inflicted Damage 245 | . . 57 . 188 Shots 7 | . . 3 . 4 Rammed 1 | . 1 . . . Targets Rammed 2 | . 1 1 . . Kicked 1 | . . 1 . . Crushed . | . . . . . Highest Temperature 240 | . 240 . . 18 Average Temperature 84 | . 87 . . 12 Received Heat Transfer 414 | . 390 . . 24 Effects 1 | . 1 . . . Interference 1 | . 1 . . . Siege Activations . | . . . . . Robots Corrupted . | . . . . . Combat Hostiles . | . . . . . Parts Fried . | . . . . . Impact Corruptions . | . . . . . Robots Melted . | . . . . . Combat Hostiles . | . . . . . Parts Melted 6 | . 6 . . . Heat Transferred 1400 | . 1375 25 . . Parts Sabotaged . | . . . . . Parts Stolen . | . . . . . Parts Stripped . | . . . . . Power Chain Reactions . | . . . . . Missiles Intercepted . | . . . . . Alert | -11 -10 -10 -10 -9 ------- Run | Jun Mat Min Exi Min Peak Influence 252 | . 252 129 . 126 Initial 19 | . . 19 . . Average 97 | . 102 108 . 98 Maximum Alert Level 1 | . 1 . . . Low Security (%) 89 | 100 79 100 . 100 Level 1 10 | . 20 . . . Level 2 . | . . . . . Level 3 . | . . . . . Level 4 . | . . . . . Level 5 . | . . . . . High Security . | . . . . . Max Security . | . . . . . Squads Dispatched 4 | . 3 1 . . Investigation 3 | . 2 1 . . Extermination . | . . . . . Reinforcement 1 | . 1 . . . Assault . | . . . . . Garrison . | . . . . . Intercept . | . . . . . Searches Triggered . | . . . . . Construction Impeded . | . . . . . Haulers Reinforced . | . . . . . Active Scanning Responses . | . . . . . Cargo Convoy Interrupts . | . . . . . Stealth | -11 -10 -10 -10 -9 --------- Run | Jun Mat Min Exi Min Distress Signals 1 | . 1 . . . Communications Jammed . | . . . . . Distress Signals . | . . . . . Times Spotted 38 | . 19 3 . 16 Peak Tracking Total 15 | . 7 3 . 15 Tactical Retreats . | . . . . . Traps | -11 -10 -10 -10 -9 ------- Run | Jun Mat Min Exi Min Traps Triggered 1 | . 1 . . . Indirectly . | . . . . . Trap Hack Attempts . | . . . . . Triggered . | . . . . . Disarmed . | . . . . . Reprogrammed . | . . . . . Reused . | . . . . . Traps Extracted . | . . . . . Installed . | . . . . . Triggered . | . . . . . Machines | -11 -10 -10 -10 -9 ---------- Run | Jun Mat Min Exi Min Machines Disabled 2 | . . . . 2 Max in Single Turn 2 | . . . . 2 Machines Repaired . | . . . . . Machines Sabotaged . | . . . . . Overloaded Fab Kills . | . . . . . Hacking | -11 -10 -10 -10 -9 --------- Run | Jun Mat Min Exi Min Machines Accessed 4 | . 3 1 . . Terminals 3 | . 3 . . . Fabricators . | . . . . . Repair Stations . | . . . . . Recycling Units . | . . . . . Scanalyzers . | . . . . . Garrison Access . | . . . . . Total Hacks 10 | . 9 1 . . Successful 6 | . 5 1 . . Failed 4 | . 4 . . . Catastrophic 1 | . 1 . . . Database Lockouts . | . . . . . Manual 6 | . 5 . 1 . Terminals 9 | . 9 . . . Fabricators . | . . . . . Repair Stations . | . . . . . Recycling Units . | . . . . . Scanalyzers . | . . . . . Garrison Access . | . . . . . Terminal Hacks 3 | . 2 1 . . Open Door 1 | . . 1 . . Unreport Threat 1 | . 1 . . . Hauler Manifests 1 | . 1 . . . Fabricator Hacks . | . . . . . Repair Station Hacks . | . . . . . Recycling Unit Hacks . | . . . . . Scanalyzer . | . . . . . Garrison Access Hacks . | . . . . . Unauthorized Hacks 3 | . 3 . . . Terminals 3 | . 3 . . . Botnet 3 | . 3 . . . Fabricators . | . . . . . Repair Stations . | . . . . . Recycling Units . | . . . . . Scanalyzers . | . . . . . Garrison Access . | . . . . . Data Cores Recovered 1 | . 1 . . . Used . | . . . . . Hacking Detections 3 | . 3 . . . Full Trace Events 1 | . 1 . . . Feedback Events . | . . . . . Feedback Blocked . | . . . . . Robot Schematics Acquired . | . . . . . Robots Built . | . . . . . Authchips . | . . . . . Time . | . . . . . Total Robot Build Rating . | . . . . . Part Schematics Acquired . | . . . . . Parts Built . | . . . . . Authchips . | . . . . . Time . | . . . . . Total Part Build Rating . | . . . . . Parts Repaired . | . . . . . Time . | . . . . . Parts Recycled . | . . . . . Recycled Matter . | . . . . . Retrieved Matter . | . . . . . Retrieved Components . | . . . . . Parts Scanalyzed . | . . . . . Part Schematics Acquired . | . . . . . Parts Damaged . | . . . . . Bothacking | -11 -10 -10 -10 -9 ------------ Run | Jun Mat Min Exi Min Used RIF Installer . | . . . . . Robots Hacked . | . . . . . Non-combat . | . . . . . Combat . | . . . . . Robot Hacks Applied . | . . . . . Relay Couplers Released . | . . . . . Fabnet Peak Effective % . | . . . . . Robots Rewired . | . . . . . Allies Hacked . | . . . . . Hacks Repelled . | . . . . . Allies | -11 -10 -10 -10 -9 -------- Run | Jun Mat Min Exi Min Total Allies . | . . . . . Largest Group . | . . . . . Highest-Rated Group . | . . . . . Highest-Rated Ally . | . . . . . Total Orders . | . . . . . Ally Attacks . | . . . . . Total Damage . | . . . . . Kills . | . . . . . Allies Corrupted . | . . . . . Allies Melted . | . . . . . Intel | -11 -10 -10 -10 -9 ------- Run | Jun Mat Min Exi Min Robot Analysis Total . | . . . . . Derelict Logs Recovered 3 | . . 3 . . Drone Launches . | . . . . . Drone Recoveries . | . . . . . Exploration | -11 -10 -10 -10 -9 ------------- Run | Jun Mat Min Exi Min Turns Passed 2127 | 90 595 454 970 18 Spaces Moved 1190 | 51 275 362 502 . Core 49 | 49 . . . . Treads 159 | 2 157 . . . Legs 982 | . 118 362 502 . Wheels . | . . . . . Hover . | . . . . . Flight . | . . . . . Fastest Speed 50 | 50 120 120 120 . Average Speed 156 | 150 142 120 191 . Slowest Speed 260 | 200 160 120 260 . Overloaded Moves . | . . . . . Propulsion Burnouts . | . . . . . Robots Hopped . | . . . . . Cave-ins Triggered . | . . . . . Exploration Rate (%) 46 | 4 57 79 87 4 Regions Visited 4 Branch Regions 3 Pre-discovered Areas 1 | . . 1 . . Known Exits Taken 1 | . . . 1 . Unknown Exits Taken 3 | 1 1 1 . . Scrap Searched 1 | . . 1 . . Spaces Dug . | . . . . . Terrain Destroyed 90 | . . 26 . 64 Melee . | . . . . . Projectile . | . . . . . AOE 90 | . . 26 . 64 Terrain Rammed . | . . . . . Walls Destroyed . | . . . . . Machines Disabled . | . . . . . Actions | -11 -10 -10 -10 -9 --------- Run | Jun Mat Min Exi Min Total 1346 | 62 383 381 511 9 Wait 30 | . 26 4 . . Move 1186 | 50 274 361 501 . Hop . | . . . . . Pick Up 25 | 7 11 4 3 . Fast Attach 11 | 5 3 1 2 . Attach 5 | . 5 . . . Detach 1 | . 1 . . . Swap 6 | . 3 1 1 1 Drop 18 | . 9 5 4 . Fire 62 | . 50 4 . 8 Melee . | . . . . . Ram . | . . . . . Kick 1 | . . 1 . . Crush 1 | . 1 . . . Escape Stasis . | . . . . . Rewire . | . . . . . Trap . | . . . . . Miscellaneous . | . . . . . Route ------- -11/Junkyard -10/Materials (discovered 2 exits: [*Mat] / *Min) -10/Mines (discovered 3 exits: [*Mat x2] / *Exi) -10/Exiles (discovered 2 exits: *Min x2) -9/Mines History --------- Turn | Location | Event 10 | -11/Junkyard | Discovered new exit (range 13) 91 | -11/Junkyard | Entered Materials 308 | -10/Materials | Build established: Mutant 354 | -10/Materials | Discovered new exit (range 4) 478 | -10/Materials | Core integrity fell below 50% 573 | -10/Materials | Discovered new exit (range 13) 686 | -10/Materials | Entered Mines 704 | -10/Mines | Discovered new exit (range 8) 920 | -10/Mines | Met a Derelict shopkeep closing up shop 959 | -10/Mines | Found a hidden stash of uninstalled traps 1107 | -10/Mines | Learned Materials security intel 1119 | -10/Mines | Discovered new exit (range 9) 1134 | -10/Mines | Deemed a non-threat by the Exiles lab entrance 1136 | -10/Mines | Discovered new exit (range 5) 1140 | -10/Mines | Entered Exiles 1141 | -10/Exiles | Identified exit to Mines 1169 | -10/Exiles | Met 8R-AWN 1191 | -10/Exiles | Met EX-HEX 1222 | -10/Exiles | Met EX-BIN 1238 | -10/Exiles | Aligned with FarCom system 1239 | -10/Exiles | Given EX-Vault access code 1268 | -10/Exiles | Opened EX-Vault 1277 | -10/Exiles | Found Prototype Energy Cannon 1277 | -10/Exiles | Identified Latent Energy Streamer 1282 | -10/Exiles | Found Prototype Special Weapon 1282 | -10/Exiles | Identified Field Lobotomy Kit 1334 | -10/Exiles | Warned to stay clear of 0b10 Research branches 1395 | -10/Exiles | Met EX-DEC 1459 | -10/Exiles | Visited The Gauntlet 2110 | -10/Exiles | Left Exiles lab with Field Lobotomy Kit 2110 | -10/Exiles | Entered Mines 2111 | -9/Mines | Assembled infested the area 2123 | -9/Mines | Core integrity fell below 20% 2128 | -9/Mines | Destroyed self with Improved Grenade Launcher Last Messages --------------- 02112_ Lgt. Ion Engine destroyed. 02112_ Destroyed Lgt. Ion Engine. 02112_ G-34 Mercenary destroyed. 02112_ Core Extractor disabled. 02112_ Terminal disabled. 02115_ G-34 Mercenary knocked back. 02118_ Aluminum Leg destroyed. 02118_ as-90736 destroyed. 02118_ as-01423 destroyed. 02118_ as-08360 destroyed. 02120_ G-34 Mercenary destroyed. 02122_ as-45557 destroyed. 02124_ as-37307 destroyed. 02124_ Destroyed Asb. Hover Unit. 02125_ The unstable cave ceiling collapses. 02125_ Knocked back. 02126_ as-13796 destroyed. 02126_ Aluminum Leg destroyed. 02127_ The unstable cave ceiling collapses. 02128_ as-81497 destroyed. Map ----- +----------------------------------------------------+ | ????????????????????????????? | | ????????????????????????????? | | ????????????????????????????? | | ????????????????????????????? | | ????????????????????????????? | | ????????????????????????????? | | ????????????????????????????? | | ????????????????????????????? | | ????????????????????????????? | | ????????????????????????????? | | ????????????????????????????? | | ????????????????????????????? | | ????????????????????????????? | | ????????????????????????????? | | ????????????????????????????? | | ????????????????????????????? | | ????????????????????????????? | | ????????????????????????????? | | ????????????????????????????? | | ????????????????????????????? | | ????????????????????????????? | | ?#########??????????????????? | | ## ???????????????????? | | # ##???????????????????? | | ##??????????????????? | | @ #??????????????????? | | ! # #??????????????????? | | #?????????????????? | | = #????????????????? | | ##????????????????? | | #?????????????????? | | # #?????????????????? | | # #?????????????????? | | # a ###?????????????????? | | # a #??????????????????? | | ## a #??????????????????? | | ?# a #??????????????????? | | ?###a# ##??????????????????? | | ????a### ???????????????????? | | ???? ??? ???????????????????? | | ???? ???????????????????????? | | ???? ???????????????????????? | | ????????????????????????????? | | ????????????????????????????? | | ????????????????????????????? | | ????????????????????????????? | | ????????????????????????????? | | ????????????????????????????? | | | | | +----------------------------------------------------+ Best States ------------- Heat Dissipation 39 Coolant Potential 50 Energy Generation 14 Energy Capacity 250 Matter Stores 300 Matter Capacity 300 Sight Range 16 Terrain Scan Density 10 Evasion (%) 55 Recoil Reduction 2 Offensive Hacking 10 Item Schematics ----------------- None Robot Schematics ------------------ None Fabricated ------------ Nothing Alien Tech Used ----------------- None Achievements -------------- None Challenges ------------ None Game ------ Seed FissionBombCasing Manual? 0 Play Time 00:10:48 Cumulative 90.3 hours Start 2023.04.07 @ 22:36:28 End 2023.04.07 @ 22:46:53 Sessions 1 Manual Loads 0 Difficulty Rogue Special Mode None Game No. 136 Rogue 136 Adventurer 0 Explorer 0 Win Type - Total 1 Types 1/0/0/0/0/0/0/0/0 Lore% 55 Gallery% 59 Achievement% 47 Wizard Run 0 Options --------- ASCII 0 Keyboard 0 Movement Numpad Keybinds 0 Fullscreen 1 Font 18/SmallcapsGlow Map View 76x50 Tactical HUD 1 Map Filters NONE Filters NONE Steam 1 RUN: 4311a0a9-8c0e-43c1-8f38-e22b61d95614